Workbook

Sheet Instructions
H4: REMEMBER
G6: In order to Print a specific budget
C7: Budget | D7: Button | G7: you must Calculate before you
C8: Type | G8: Print that particular budget.
C10: TOTAL
C11: COST
C13: CASH
C14: FLOW
C16: VARIABLE
C17: COST
C19: Note: Be sure to enable all
C20: macros on start-up.

Sheet Main
B1: Stockering Steers On Stockpiled Fescue, Winter Grass, Hay & Supplement | U1: 3
B2: R. Curt Lacy and Lawton Stewart
B3: Agricultural & Applied Economics and Animal & Dairy Science Departments
X4: 1 | Y4: 2 | Z4: 3
B5: University of Georgia Cooperative Extensio
Z6: (Total Cost Budget)
B7: OCTOBER 2012 | Z7: (Cash Flow Budget)
Z8: (Variable Cost Budget)
B10: INPUT DATA: Your values in the unprotected or highlighted cells | Z10: RISK RATED RETURNS OVER TOTAL COST
Z11: RISK RATED RETURNS OVER CASH FLOW COST
Z12: RISK RATED RETURNS OVER VARIABLE COST
B15: Stockering Steers On Stockpiled Fescue, Winter Annuals Hay & Supplement with clover
B16: (Variable Cost Budget)
B18: NUMBER OF ACRES | F18: 50 | H18: In Date | J18: 2012-11-01
B19: STOCKING RATE (HEAD/ACRE) | F19: 2 | H19: Out Date | J19: =+J18+F23 -> 2013-04-30
B20: NUMBER OF CALVES PLACED | F20: =F18*F19 -> 100
B21: DEATH LOSS (%) | F21: 1
B22: NUMBER OF CALVES SOLD | F22: =+F20*((100-F21)/100) -> 99
B23: STOCKERING PERIOD (DAYS) | F23: 180
B24: MARKETING SHRINK(%) | F24: 0.03
F26: BEST | G26: OPT. | H26: MEDIAN | I26: PESS. | J26: WORST
B27: PAYWEIGHT TO PAYWEIGHT | F27: 2.75 | G27: =+H27+0.25 -> 2.25 | H27: 2 | I27: =+H27-0.25 -> 1.75 | J27: 1.25
B28: DAILY GAIN (LBS./DAY)
B29: NET SELLING WEIGHT (CWT.) | F29: =(F27*F23/100+F36) -> 9.95 | G29: =(G27*F23/100+F36) -> 9.05 | H29: =(H27*F23/100)+(F36) -> 8.6 | I29: =(I27*F23/100+F36) -> 8.15 | J29: =(J27*F23/100+F36) -> 7.25
B30: SELLING PRICE ($/CWT.) | F30: 145 | G30: =+(F30+H30)/2 -> 135 | H30: 125 | I30: =+(H30+J30)/2 -> 120 | J30: 115
B32: Item | E32: Unit | F32: Units Per Head | G32: Total Quantity (units) | H32: Unit Price ($/Unit) | I32: Total Amount
J33: $/Head
J34: Marketed
B35: VARIABLE COSTS:
B36: CALF | E36: CWT. | F36: 5 | G36: =+F36*placed -> 500 | H36: 137.5 | I36: =G36*H36 -> 68750 | J36: =+IF(I36>0,(I36/sold),0) -> 694.4444444
A37: Procurement Detail | B37: PROCUREMENT COST | E37: HEAD | F37: 1 | G37: 100 | H37: =+Procurement!H10 -> 8.666666667 | I37: 866.6666667 | J37: 8.754208754
A38: Fescue Grazing Detail | B38: TALL FESCUE GRAZING | E38: ACRE | F38: 0.15 | G38: 15 | H38: =+grazing_cost/ACRES -> 120.878125 | I38: 1813.171875 | J38: 18.31486742
A39: Winter Grazing Detail | B39: WINTER GRAZING | E39: ACRE | F39: 0.35 | G39: =+F39*placed -> 35 | H39: =+'Winter Grazing'!tvc_grazing -> 121.820137 | I39: 4263.704795 | J39: 43.0677252
B40: HAY | E40: TON | F40: =5*60/2000 -> 0.15 | G40: 15 | H40: 100 | I40: 1500 | J40: 15.15151515
B41: RECEIVING RATION | E41: TONS | F41: =12.5*7*4/2000 -> 0.175 | G41: 17.5 | H41: 275 | I41: 4812.5 | J41: 48.61111111
B42: SUPPLEMENTAL FEED | E42: TONS | F42: =600*0.015*0.045 -> 0.405 | G42: 40.5 | H42: 275 | I42: 11137.5 | J42: 112.5
B43: MINERAL + IONOPHORE | E43: LBS. | F43: =+F23*0.25 -> 45 | G43: 4500 | H43: 0.28 | I43: 1260 | J43: 12.72727273
B44: MEDICATION,WORM,VAC. | E44: HEAD | F44: 2 | G44: 200 | H44: 4 | I44: 800 | J44: 8.080808081
B45: GROW.STIMULANT | E45: IMPLANT | F45: 2 | G45: 200 | H45: 1 | I45: 200 | J45: 2.02020202
B46: REPAIRS | E46: HEAD | F46: 1 | G46: 100 | H46: =AVERAGE(Fixed_Cost!F30:G31)*0.02/Fixed_Cost!G6 -> 1.043 | I46: 104.3 | J46: 1.053535354
B47: LAND RENTAL | E47: ACRE | F47: =F38 -> 0.15 | G47: 15 | H47: 0 | I47: 0 | J47: 0
B48: LABOR | E48: HRS. | F48: =+F23*1.5/placed -> 2.7 | G48: 270 | H48: 9.02 | I48: 2435.4 | J48: 24.6
B49: DEATH LOSS | E49: PERCENT | F49: 0.01 | G49: =+SUM(I36:I48)*0.75/placed -> 734.574325 | H49: =+G49*F49 -> 7.34574325 | I49: 5395.99439 | J49: 54.50499384
B50: INTEREST ON OP. CAP. | E50: PERCENT | H50: 0.08 | I50: =+SUM(I36:I49)*0.5*($F$23/365)*H50 -> 2038.472635 | J50: 20.59063267
A51: Auction & Hauling Detail | B51: AUCTION AND HAULING | E51: HEAD | F51: 1 | G51: =F51*F20 -> 100 | H51: =+mktng_cst -> 24.63158333 | I51: =G51*H51 -> 2463.158333 | J51: 24.88038721
B53: TOTAL VARIABLE COST | I53: =SUM(I36:I51) -> 107840.8687 | J53: =+IF(I53>0,(I53/sold),0) -> 1089.301704
B55: =+IF(bud_type=3,"No Fixed Costs for Variable Cost Budget","FIXED COST:(Click Appropriate Link at Left for Annual Fixed Cost)") -> No Fixed Costs for Variable Cost Budget
A56: Total Cost | B56: =+IF(bud_type=1,"Total Cattle Equipment Fixed Costs",IF(bud_type=2,"Total Fixed Cash Payments","")) ->  | E56: =+IF(bud_type<>3,"Head Sold","") ->  | F56: =+IF(bud_type=1,+ROUNDDOWN(sold,0),0) -> 0 | H56: =+IF(bud_type<>3,I56/sold,0) -> 0 | I56: =+IF(bud_type=1,cattle_fixed,IF(bud_type=2,cf_total,0)) -> 0 | J56: =+IF(I56>0,(I56/sold),0) -> 0
A57: Cash Flow | B57: =+IF(bud_type=1,"Total Machinery Fixed Costs","") ->  | E57: =+IF(bud_type=1,"Acres","") ->  | F57: =+IF(bud_type=1,ACRES,0) -> 0 | H57: =+IF(bud_type=1,I57/ACRES,0) -> 0 | I57: =+IF(bud_type=1,mach_fixed,0) -> 0 | J57: 0
B58: =+IF(bud_type=1,"Overhead","") ->  | E58: =+IF(bud_type=1,"Head Sold","") ->  | F58: =+IF(bud_type=1,+ROUNDDOWN(sold,0),0) -> 0 | H58: 0 | I58: =+IF(bud_type=1,H58*F58,0) -> 0 | J58: 0
B59: =+IF(bud_type=1,"Management ","") ->  | E59: =+IF(bud_type=1,"% of Value Added","") ->  | F59: =+IF(bud_type=1,(H89-I36),0) -> 0 | H59: 0.06 | I59: =+IF(bud_type=1,H59*F59,0) -> 0 | J59: 0
B60: =+IF(bud_type=1,"Land","") ->  | E60: =+IF(bud_type=1,"Acres","") ->  | F60: =+IF(bud_type=1,ACRES,0) -> 0 | H60: 0 | I60: =+IF(bud_type=1,H60*F60,0) -> 0 | J60: 0
B61: TOTAL FIXED COST | I61: =SUM(I56:I60) -> 0 | J61: 0
B63: COST OF GAIN SUMMARY AND MAX. BREAKEVEN CALF PRICE
I64: $/CWT.
B65: FEED ONLY COST OF GAIN ($/CWT.) | I65: =SUM(I38:I43)/(D89-G36) -> 70.53749764
B66: FEEDING COST OF GAIN ($/CWT.) | I66: =+(+I53-I36-I37)/(D89-G36) -> 108.7768982
B67: TOTAL COST OF GAIN ($/CWT.) | I67: =+(+F81-I36-I37)/(D89-G36) -> 108.7768982
B69: MAX. BREAKEVEN PURCHASE PRICE OF CALF | I69: =+(+H89-(+F81-I36))/G36 -> 137.4778826
B72: EXPECTED BREAKEVEN TABLE
B74: ITEM | E74: TOTAL AMOUNT | H74: $ / CWT. | I74: $/HD.
B75: VARIABLE COST | F75: =I53 -> 107840.8687 | H75: =F75/(U169*F20) -> 125.3963589 | I75: =+F75/sold -> 1089.301704
B76: =+B56 ->  | F76: =IF(I56>0,I56,0) -> 0 | H76: =IF(F76>0,F76/(U169*F20),0) -> 0 | I76: 0
B77: =+B57 ->  | F77: =I57 -> 0 | H77: =F77/(U169*F20) -> 0 | I77: 0
B78: =+B58 ->  | F78: =I58 -> 0 | H78: =F78/(U169*F20) -> 0 | I78: 0
B79: =+B59 ->  | F79: =I59 -> 0 | H79: =F79/(U169*F20) -> 0 | I79: 0
B80: =+B60 ->  | F80: =I60 -> 0 | H80: =F80/(U169*F20) -> 0 | I80: 0
B81: TOTAL COST | F81: =SUM(F75:F80) -> 107840.8687 | H81: =F81/(U169*F20) -> 125.3963589 | I81: 1089.301704
B84: EXPECTED RETURN TABLE
E85: =+sold -> 99 | F85: head sold
B87: EXP. WEIGHT | D87: TOTAL WEIGHT | F87: EXP. PRICE | H87: TOTAL RETURN
B88: (cwt./hd.) | D88: (cwt.) | F88: ($/cwt.)
B89: =+U169 -> 8.6 | D89: =+B89*sold -> 851.4 | F89: =+W169 -> 126.65 | H89: =+F89*D89 -> 107829.81
B92: RISK RATED RETURNS OVER VARIABLE COST
B94: Net return levels (TOP ROW);
B95: The chances of obtaining this level or more (MIDDLE ROW); and
B96: The chances of obtaining this level or less (BOTTOM ROW).
E98: Optimistic | G98: Expected | I98: Pessimistic
B99: Returns | D99: =U208:U208+1.5*W207:W207 -> 16262.99818 | E99: =U208:U208+W207:W207 -> 11201.37589 | F99: =U208:U208+0.5*W207:W207 -> 6139.753596 | G99: =U208:U208 -> 1078.131306 | H99: =U208:U208-0.5*W208:W208 -> -3504.224252 | I99: =U208:U208-W208:W208 -> -8086.579809 | J99: =U208:U208-1.5*W208:W208 -> -12668.93537
B100: Chances | D100: =IF(V211<1,IF(U211,Z211,1-Z211),IF(U211,Z212,1-Z212)) -> 0.07137355398 | E100: =IF(AB211<1,IF(AA211,AF211,1-AF211),IF(AA211,AF212,1-AF212)) -> 0.1586187693 | F100: =IF(AH211<1,IF(AG211,AL211,1-AL211),IF(AG211,AL212,1-AL212)) -> 0.2960052469 | G100: =IF(V213<1,IF(U213,Z213,1-Z213),IF(U213,Z214,1-Z214)) -> 0.4869172492 | H100: =IF(AB213<1,IF(AA213,AF213,1-AF213),IF(AA213,AF214,1-AF214)) -> 0.6778499275 | I100: =IF(AH213<1,IF(AG213,AL213,1-AL213),IF(AG213,AL214,1-AL214)) -> 0.8413043272 | J100: =IF(V215<1,IF(U215,Z215,1-Z215),IF(U215,Z216,1-Z216)) -> 0.938204951
B101: Chances | D101: =IF(V211<1,IF(U211,1-Z211,Z211),IF(U211,1-Z212,Z212)) -> 0.928626446 | E101: =IF(AB211<1,IF(AA211,1-AF211,AF211),IF(AA211,1-AF212,AF212)) -> 0.8413812307 | F101: =IF(AH211<1,IF(AG211,1-AL211,AL211),IF(AG211,1-AL212,AL212)) -> 0.7039947531 | G101: =IF(V213<1,IF(U213,1-Z213,Z213),IF(U213,1-Z214,Z214)) -> 0.5130827508 | H101: =IF(AB213<1,IF(AA213,1-AF213,AF213),IF(AA213,1-AF214,AF214)) -> 0.3221500725 | I101: =IF(AH213<1,IF(AG213,1-AL213,AL213),IF(AG213,1-AL214,AL214)) -> 0.1586956728 | J101: =IF(V215<1,IF(U215,1-Z215,Z215),IF(U215,1-Z216,Z216)) -> 0.06179504904
B103: CHANCE FOR PROFIT | E103: =IF(AB215<1,IF(AA215,AF215,1-AF215),IF(AA215,AF216,1-AF216)) -> 0.5317983545 | F103: BASE BUDGETED NET REVENUE | J103: =+(H89-U163) -> -11.05869392
F104: Profit (Loss) Per Head Placed | J104: =+J103/placed -> -0.1105869392
B106: PROFIT IS RETURN TO RISK AND ALL "ZERO" ITEMS IN THE BUDGET.
B107: MAY ENTER YOUR OWN VALUES.
T154: * | U154: Must match budget Entries | Y154: * | AV154: 1
T155: * | U155: - | Y155: *
T156: * | U156: =+F20 -> 100 | V156: HEAD | Y156: *
T157: * | U157: =+F29 -> 9.95 | V157: Best Y | W157: =+F30 -> 145 | X157: Best P | Y157: *
P158: % | T158: * | U158: =+G29 -> 9.05 | V158: Opt. Y | W158: =+G30 -> 135 | X158: Opt. P | Y158: *
T159: * | U159: =+H29 -> 8.6 | V159: Med. Y | W159: =H30 -> 125 | X159: Med. P | Y159: *
T160: * | U160: =+I29 -> 8.15 | V160: Pess. Y | W160: =I30 -> 120 | X160: Pess. P | Y160: *
T161: * | U161: =+J29 -> 7.25 | V161: Worst Y | W161: =J30 -> 115 | X161: Worst P | Y161: *
T162: * | U162: 0 | V162: H&MC | Y162: *
T163: * | U163: =+F81 -> 107840.8687 | V163: T.C. | Y163: *
T164: * | U164: * | Y164: *
T165: : | U165: - | Y165: :
T167: : | V167: Calculations | Y167: :
T168: : | U168: - | Y168: :
T169: : | U169: =0.04*U157+0.25*U158+0.42*U159+0.25*U160+0.04*U161 -> 8.6 | V169: Exp. Y | W169: =0.04*W157+0.25*W158+0.42*W159+0.25*W160+0.04*W161 -> 126.65 | X169: Exp. P | Y169: :
T170: : | U170: =0.25*(U157-U169)+0.5*(U158-U169) -> 0.5625 | V170: SYO | W170: =0.25*(W157-W169)+0.5*(W158-W169) -> 8.7625 | X170: SPO | Y170: :
T171: : | U171: =0.25*(U169-U161)+0.5*(U169-U160) -> 0.5625 | V171: SYP | W171: =0.25*(W169-W161)+0.5*(W169-W160) -> 6.2375 | X171: SPP | Y171: :
T181: : | U181: =U170^2 -> 0.31640625 | V181: VYO | W181: =W170^2 -> 76.78140625 | X181: VPO | Y181: :
T182: : | U182: =U171^2 -> 0.31640625 | V182: VYP | W182: =W171^2 -> 38.90640625 | X182: VPP | Y182: :
T183: : | U183: - | Y183: :
T184: : | U184: =(U169^2*W181)+(W169-U162)^2*U181 -> 10753.97946 | V184: VTRHH | W184: =(U169^2*W182)+(W169-U162)^2*U182 -> 7952.744457 | X184: VTRLL | Y184: :
T185: : | U185: =(U169^2*W181)+(W169-U162)^2*U182 -> 10753.97946 | V185: VTRHL | W185: =U169^2*W182+(W169-U162)^2*U181 -> 7952.744457 | X185: VTRLH | Y185: :
T186: : | U186: =SQRT(U184) -> 103.7013956 | V186: STRHH | W186: =SQRT(W184) -> 89.17816132 | X186: STRLL | Y186: :
T188: : | U188: =SQRT(U185) -> 103.7013956 | V188: STRHL | W188: =SQRT(W185) -> 89.17816132 | X188: STRLH | Y188: :
T189: : | U189: =0.66*U186+0.17*U188+0.17*W188 -> 101.2324458 | V189: STRO | W189: =0.66*W186+0.17*U188+0.17*W188 -> 91.64711115 | X189: STRP | Y189: :
T190: : | U190: - | Y190: :
T191: : | U191: Calculation of NR and for Z values | Y191: :
T201: : | U201: - | Y201: :
T202: : | U202: =W159 -> 125 | V202: MP | W202: =+U208-U206 -> 316.3160434 | X202: ENR_MNR | Y202: : | AO202: 1
T203: : | U203: =U159 -> 8.6 | V203: MY | W203: =U156*U186 -> 10370.13956 | X203: STRHH | Y203: :
T204: : | U204: =+U207+0.33*(W208-W207) -> 108602.684 | V204: MTR | W204: =U156*W186 -> 8917.816132 | X204: STRLL | Y204: :
T205: : | U205: =+F81 -> 107840.8687 | V205: MTC | W205: =U156*U188 -> 10370.13956 | X205: STRHL | Y205: :
T206: : | U206: =U204-U205 -> 761.8152627 | V206: MNR | W206: =U156*W188 -> 8917.816132 | X206: STRLH | Y206: :
T207: : | U207: =U156*U169*W169 -> 108919 | V207: ETR | W207: =U156*U189 -> 10123.24458 | X207: STRO | Y207: :
T208: : | U208: =U207-U205 -> 1078.131306 | V208: ENR | W208: =U156*W189 -> 9164.711115 | X208: STRP | Y208: :
T209: : | U209: - | Y209: :
U211: =+D99>=U206 -> TRUE | V211: =ABS((D99-U208)/IF(U211,W207,W208)) -> 1.5 | W211: =MIN(2.5,ABS((D99-(U206+W202*ABS(D99-U206)/ABS(IF(U211,W207+W202,W208-W202))*MIN(1,V211)))/(MIN(1.52,V211)/1.52*IF(U211,W203,W204)+(1.52-MIN(1.52,V211))/3.04*W205+(1.52-MIN(1.52,V211))/3.04*W206))) -> 1.450835187 | X211: =1/(1+(0.2316419*W211)) -> 0.7484614144 | Y211: =0.398942281*((2.71828)^((-(W211^2)/2))) -> 0.1392618654 | Z211: =Y211*(0.31938153*X211-0.356563782*X211^2+1.781477937*X211^3-1.821255978*X211^4+1.330274429*X211^5) -> 0.07341297208 | AA211: =+E99>=U206 -> TRUE | AB211: =ABS((E99-U208)/IF(AA211,W207,W208)) -> 1 | AC211: =MIN(2.5,ABS((E99-(U206+W202*ABS(E99-U206)/ABS(IF(AA211,W207+W202,W208-W202))*MIN(1,AB211)))/(MIN(1.52,AB211)/1.52*IF(AA211,W203,W204)+(1.52-MIN(1.52,AB211))/3.04*W205+(1.52-MIN(1.52,AB211))/3.04*W206))) -> 1.000151038 | AD211: =1/(1+(0.2316419*AC211)) -> 0.8119012468 | AE211: =0.398942281*((2.71828)^((-(AC211^2)/2))) -> 0.2419342596 | AF211: =AE211*(0.31938153*AD211-0.356563782*AD211^2+1.781477937*AD211^3-1.821255978*AD211^4+1.330274429*AD211^5) -> 0.1586187693 | AG211: =+F99>=U206 -> TRUE | AH211: =ABS((F99-U208)/IF(AG211,W207,W208)) -> 0.5 | AI211: =MIN(2.5,ABS((F99-(U206+W202*ABS(F99-U206)/ABS(IF(AG211,W207+W202,W208-W202))*MIN(1,AH211)))/(MIN(1.52,AH211)/1.52*IF(AG211,W203,W204)+(1.52-MIN(1.52,AH211))/3.04*W205+(1.52-MIN(1.52,AH211))/3.04*W206))) -> 0.5359248542 | AJ211: =1/(1+(0.2316419*AI211)) -> 0.8895668167 | AK211: =0.398942281*((2.71828)^((-(AI211^2)/2))) -> 0.3455748005 | AL211: =AK211*(0.31938153*AJ211-0.356563782*AJ211^2+1.781477937*AJ211^3-1.821255978*AJ211^4+1.330274429*AJ211^5) -> 0.2960052469
W212: =MIN(2.5,ABS((D99-U208)/(MIN(1.52,V211)/1.52*IF(U211,W203,W204)+(1.52-MIN(1.52,V211))/3.04*W205+(1.52-MIN(1.52,V211))/3.04*W206))) -> 1.465638008 | X212: 0.7465454508 | Y212: 0.1362879716 | Z212: 0.07137355398 | AC212: =MIN(2.5,ABS((E99-U208)/(MIN(1.52,AB211)/1.52*IF(AA211,W203,W204)+(1.52-MIN(1.52,AB211))/3.04*W205+(1.52-MIN(1.52,AB211))/3.04*W206))) -> 1.000151038 | AD212: 0.8119012468 | AE212: 0.2419342596 | AF212: 0.1586187693 | AI212: =MIN(2.5,ABS((F99-U208)/(MIN(1.52,AH211)/1.52*IF(AG211,W203,W204)+(1.52-MIN(1.52,AH211))/3.04*W205+(1.52-MIN(1.52,AH211))/3.04*W206))) -> 0.5121623734 | AJ212: =1/(1+(0.2316419*AI212)) -> 0.8939440309 | AK212: =0.398942281*((2.71828)^((-(AI212^2)/2))) -> 0.3499049993 | AL212: =AK212*(0.31938153*AJ212-0.356563782*AJ212^2+1.781477937*AJ212^3-1.821255978*AJ212^4+1.330274429*AJ212^5) -> 0.3042687014
U213: =+G99>=U206 -> TRUE | V213: =ABS((G99-U208)/IF(U213,W207,W208)) -> 0 | W213: =MIN(2.5,ABS((G99-(U206+W202*ABS(G99-U206)/ABS(IF(U213,W207+W202,W208-W202))*MIN(1,V213)))/(MIN(1.52,V213)/1.52*IF(U213,W203,W204)+(1.52-MIN(1.52,V213))/3.04*W205+(1.52-MIN(1.52,V213))/3.04*W206))) -> 0.03279933326 | X213: 0.9924595899 | Y213: 0.3987277485 | Z213: 0.4869172492 | AA213: =+H99>=U206 -> FALSE | AB213: =ABS((H99-U208)/IF(AA213,W207,W208)) -> 0.5 | AC213: =MIN(2.5,ABS((H99-(U206+W202*ABS(H99-U206)/ABS(IF(AA213,W207+W202,W208-W202))*MIN(1,AB213)))/(MIN(1.52,AB213)/1.52*IF(AA213,W203,W204)+(1.52-MIN(1.52,AB213))/3.04*W205+(1.52-MIN(1.52,AB213))/3.04*W206))) -> 0.461694983 | AD213: 0.9033848813 | AE213: 0.3586100872 | AF213: 0.3221500725 | AG213: =+I99>=U206 -> FALSE | AH213: =ABS((I99-U208)/IF(AG213,W207,W208)) -> 1 | AI213: =MIN(2.5,ABS((I99-(U206+W202*ABS(I99-U206)/ABS(IF(AG213,W207+W202,W208-W202))*MIN(1,AH213)))/(MIN(1.52,AH213)/1.52*IF(AG213,W203,W204)+(1.52-MIN(1.52,AH213))/3.04*W205+(1.52-MIN(1.52,AH213))/3.04*W206))) -> 0.9998332183 | AJ213: =1/(1+(0.2316419*AI213)) -> 0.8119497791 | AK213: =0.398942281*((2.71828)^((-(AI213^2)/2))) -> 0.2420111625 | AL213: =AK213*(0.31938153*AJ213-0.356563782*AJ213^2+1.781477937*AJ213^3-1.821255978*AJ213^4+1.330274429*AJ213^5) -> 0.1586956728
W214: =MIN(2.5,ABS((G99-U208)/(MIN(1.52,V213)/1.52*IF(U213,W203,W204)+(1.52-MIN(1.52,V213))/3.04*W205+(1.52-MIN(1.52,V213))/3.04*W206))) -> 0 | X214: 1 | Y214: 0.398942281 | Z214: 0.5000000002 | AC214: =MIN(2.5,ABS((H99-U208)/(MIN(1.52,AB213)/1.52*IF(AA213,W203,W204)+(1.52-MIN(1.52,AB213))/3.04*W205+(1.52-MIN(1.52,AB213))/3.04*W206))) -> 0.4872198318 | AD214: 0.8985852003 | AE214: 0.3542933509 | AF214: 0.3130513023 | AI214: =MIN(2.5,ABS((I99-U208)/(MIN(1.52,AH213)/1.52*IF(AG213,W203,W204)+(1.52-MIN(1.52,AH213))/3.04*W205+(1.52-MIN(1.52,AH213))/3.04*W206))) -> 0.9998332183 | AJ214: =1/(1+(0.2316419*AI214)) -> 0.8119497791 | AK214: =0.398942281*((2.71828)^((-(AI214^2)/2))) -> 0.2420111625 | AL214: =AK214*(0.31938153*AJ214-0.356563782*AJ214^2+1.781477937*AJ214^3-1.821255978*AJ214^4+1.330274429*AJ214^5) -> 0.1586956728
U215: =+J99>=U206 -> FALSE | V215: =ABS((J99-U208)/IF(U215,W207,W208)) -> 1.5 | W215: =MIN(2.5,ABS((J99-(U206+W202*ABS(J99-U206)/ABS(IF(U215,W207+W202,W208-W202))*MIN(1,V215)))/(MIN(1.52,V215)/1.52*IF(U215,W203,W204)+(1.52-MIN(1.52,V215))/3.04*W205+(1.52-MIN(1.52,V215))/3.04*W206))) -> 1.558227922 | X215: 0.7347803784 | Y215: 0.1184842968 | Z215: 0.05958967322 | AA215: =0>=U206 -> FALSE | AB215: =ABS((0-U208)/IF(AA215,W207,W208)) -> 0.1176394207 | AC215: =MIN(2.5,ABS((0-(U206+W202*ABS(0-U206)/ABS(IF(AA215,W207+W202,W208-W202))*MIN(1,AB215)))/(MIN(1.52,AB215)/1.52*IF(AA215,W203,W204)+(1.52-MIN(1.52,AB215))/3.04*W205+(1.52-MIN(1.52,AB215))/3.04*W206))) -> 0.07979107306 | AD215: 0.9818524643 | AE215: 0.397674345 | AF215: 0.4682016455
W216: =MIN(2.5,ABS((J99-U208)/(MIN(1.52,V215)/1.52*IF(U215,W203,W204)+(1.52-MIN(1.52,V215))/3.04*W205+(1.52-MIN(1.52,V215))/3.04*W206))) -> 1.53987852 | X216: 0.7370824172 | Y216: 0.1219004365 | Z216: 0.06179504904 | AC216: =MIN(2.5,ABS((0-U208)/(MIN(1.52,AB215)/1.52*IF(AA215,W203,W204)+(1.52-MIN(1.52,AB215))/3.04*W205+(1.52-MIN(1.52,AB215))/3.04*W206))) -> 0.1124485168 | AD216: 0.9746134748 | AE216: 0.3964279926 | AF216: 0.4552338462
U220: EXPDATA:
U221: =U156 -> 100 | V221: =U169 -> 8.6 | W221: =W169 -> 126.65 | X221: =I81 -> 1089.301704 | Y221: =W207 -> 10123.24458 | Z221: =W208 -> 9164.711115 | AA221: =W203 -> 10370.13956 | AB221: =W205 -> 10370.13956 | AC221: =W204 -> 8917.816132 | AD221: =W206 -> 8917.816132

Sheet Fescue Grazing
B1: Tall Fescue Grazing Cost | Z1: RISK RATED RETURNS OVER CASH FLOW COST
I2: Return to Main Budget
D3: NUMBER OF ACRES | G3: =+acres -> 50
G5: UNITS | H5: TOTAL | I5: UNIT | J5: TOTAL
B6: ITEM | F6: UNIT | G6: PER ACRE | H6: QUANTITY | I6: PRICE | J6: AMOUNT
B7: VARIABLE COSTS: | H7: (units) | I7: ($/unit)
B8: Lime | F8: TON | G8: 0.5 | H8: =G8*acres -> 25 | I8: 30 | J8: =H8*I8 -> 750
B9: FERTILIZER:
B10: Nitrogen | F10: LB. | G10: 60 | H10: =G10*acres -> 3000 | I10: 0.75 | J10: =H10*I10 -> 2250
B11: Phosphate | F11: LB. | G11: 50 | H11: =G11*acres -> 2500 | I11: 0.6 | J11: =H11*I11 -> 1500
B12: Potash | F12: LB. | G12: 50 | H12: =G12*acres -> 2500 | I12: 0.55 | J12: =H12*I12 -> 1375
B13: SEED
B14: Max-Q Fescue Seed | F14: Lbs. | G14: 2.5 | H14: =G14*acres -> 125 | I14: 0 | J14: =H14*I14 -> 0
B15: Red Clover | F15: Lbs. | G15: 0 | H15: =G15*acres -> 0 | I15: 1.25 | J15: =H15*I15 -> 0
B16: White Clover | F16: Lbs. | G16: 0 | H16: =G16*acres -> 0 | I16: 2 | J16: =H16*I16 -> 0
B17: HERBICIDES | F17: ACRE | G17: 0 | H17: =G17*G3 -> 0 | I17: 6 | J17: =H17*I17 -> 0 | Q17: *
B18: MACHINERY:
B19: Fuel | F19: GAL. | G19: 0 | H19: =G19*G3 -> 0 | I19: 3.75 | J19: =H19*I19 -> 0
B20: Repairs & Maint | F20: ACRE | G20: 0 | H20: =G20*G3 -> 0 | I20: 7.2 | J20: =H20*I20 -> 0
B21: LABOR | F21: HRS. | G21: 0 | H21: =G21*G3 -> 0 | I21: 9.02 | J21: =H21*I21 -> 0
B22: OTHER | F22: $ | G22: 0 | H22: =G22*G3 -> 0 | I22: 0 | J22: =H22*I22 -> 0
B23: INTEREST ON OP. CAP. | F23: $ | H23: =SUM(J8:J22) -> 5875 | I23: 0.0575 | J23: =H23*I23/365*182.5 -> 168.90625
B24: Total Grazing Cost | J24: =SUM(J8:J23) -> 6043.90625
B25: Total Grazing Cost Per Acre | J25: =+grazing_cost/acres -> 120.878125

Sheet Winter Grazing
B1: Winter Annual Grazing Budget | R1: 3 | X1: 3 | Y1: 2 | Z1: 1
B3: Ext. Ag. Econ. Dept., Univ. of Ga. | Z3: (Total Cost Budget)
B4: Revised 2012 | Z4: (Cash Flow Budget)
Z5: (Variable Cost Budget)
B7: INPUT DATA: Your values in the unprotected or highlighted cells | Z7: DIRECT FIXED COST
Z8: ANNUAL FIXED PAYMENT
Z9: DIRECT FIXED COST
Z11: RISK RATED RETURNS OVER TOTAL COST
B12: OVERSEEDED WINTER GRAZING | Z12: RISK RATED RETURNS OVER CASH FLOW COST
Z13: RISK RATED RETURNS OVER VARIABLE COST
F15: (Variable Cost Budget) | J15: Return to Main budget
B16: Number of Acres | F16: 1
B17: Number of 1,000 # Animal Units/acre | F17: 1
B18: Expected number of grazing days/acre | F18: 150
G22: UNITS | H22: TOTAL | I22: UNIT | J22: TOTAL | K22: YOUR
B23: ITEM | F23: UNIT | G23: PER ACRE | H23: QUANTITY | I23: PRICE | J23: AMOUNT | K23: FARM | O23: Other Costs = | Q23: =+SUM(J36:J41)+J26+J27+J30+J33+J34 -> 46.97013699 | S23: In Nitrogen = | T23: Cost/Ac=
B24: VARIABLE COSTS: | H24: (units) | I24: ($/unit) | S24: 0.6 | T24: =+(wg_n_rate*$S24+other_costs) -> 85.97013699
B25: SEED | S25: =+S24+0.1 -> 0.7 | T25: =+(wg_n_rate*$S25+other_costs) -> 92.47013699
B26: Rye | F26: LBS. | G26: 75 | H26: =+$F$16*G26 -> 75 | I26: 0.31 | J26: =H26*I26 -> 23.25 | O26: n_rate_no clover | P26: 150 | S26: =+S25+0.1 -> 0.8 | T26: =+(wg_n_rate*$S26+other_costs) -> 98.97013699
B27: Ryegrass | F27: LBS. | G27: 20 | H27: =+$F$16*G27 -> 20 | I27: 0.38 | J27: =H27*I27 -> 7.6 | O27: clover_n_ratre | P27: 100 | S27: =+S26+0.1 -> 0.9 | T27: =+(wg_n_rate*$S27+other_costs) -> 105.470137
B28: Arrowleaf Clover | F28: LBS. | G28: 6 | H28: =+$F$16*G28 -> 6 | I28: 1.85 | J28: =H28*I28 -> 11.1 | S28: =+S27+0.1 -> 1 | T28: =+(wg_n_rate*$S28+other_costs) -> 111.970137
B29: Crimson clover | F29: LBS. | G29: 12 | H29: =+$F$16*G29 -> 12 | I29: 1.25 | J29: =H29*I29 -> 15
B30: LIME | F30: TON | G30: 0 | H30: =+$F$16*G30 -> 0 | I30: 30 | J30: =H30*I30 -> 0 | P30: NITROGEN COST ($/POUND OF N)
B31: FERTILIZER: | P31: 0.6 | Q31: =+P31+0.1 -> 0.7 | R31: =+Q31+0.1 -> 0.8 | S31: =+R31+0.1 -> 0.9 | T31: =+S31+0.1 -> 1
B32: NITROGEN | F32: LB. | G32: 65 | H32: =+$F$16*G32 -> 65 | I32: 0.75 | J32: =H32*I32 -> 48.75 | N32: CLOVER COST ($/ACRE) | O32: 25 | P32: =+((no_clvr_n_rate*P$31)+other_costs)-((clvr_n_rate*P$31)+($O32+other_costs)) -> 5 | Q32: 10 | R32: 15 | S32: 20 | T32: 25
B33: P205 | F33: LB. | G33: 0 | H33: =+$F$16*G33 -> 0 | I33: 0.6 | J33: =H33*I33 -> 0 | O33: =+O32+5 -> 30 | P33: 0 | Q33: 5 | R33: 10 | S33: 15 | T33: 20
B34: K20 | F34: LB. | G34: 0 | H34: =+$F$16*G34 -> 0 | I34: 0.55 | J34: =H34*I34 -> 0 | O34: =+O33+5 -> 35 | P34: -5 | Q34: 0 | R34: 5 | S34: 10 | T34: 15
B35: MACHINERY | O35: =+O34+5 -> 40 | P35: -10 | Q35: -5 | R35: 0 | S35: 5 | T35: 10
B36: FUEL | F36: GAL. | G36: 0 | H36: =+$F$16*G36 -> 0 | I36: 4 | J36: =H36*I36 -> 0 | O36: =+O35+5 -> 45 | P36: -15 | Q36: -10 | R36: -5 | S36: 0 | T36: 5
B37: REPAIRS & MAINT. | F37: ACRE | G37: 1 | H37: =+$F$16*G37 -> 1 | I37: =1.53+0.62 -> 2.15 | J37: =H37*I37 -> 2.15 | O37: =+O36+5 -> 50 | P37: -20 | Q37: -15 | R37: -10 | S37: -5 | T37: 0
B38: LAND RENTAL | F38: ACRE | G38: 0 | H38: =+$F$16*G38 -> 0 | I38: 0 | J38: =H38*I38 -> 0
B39: LABOR | F39: HRS. | G39: 0 | H39: =+$F$16*G39 -> 0 | I39: 9.02 | J39: =H39*I39 -> 0
B40: Custom Planting | F40: Acre | G40: 1 | H40: =+$F$16*G40 -> 1 | I40: 12 | J40: =H40*I40 -> 12
B41: INTEREST ON OP. CAP. | F41: % | G41: 1 | H41: =SUM(J25:J40)*0.5 -> 59.925 | I41: 0.08 | J41: =+(I41*H41)*days/365 -> 1.970136986
B42: TOTAL VARIABLE COST | J42: =SUM(J25:J41) -> 121.820137
A44: Calculate Fixed Cost | B44: =IF($R$1=3,"FIXED COST:(No Fixed Cost for Variable Cost Budget","FIXED COST:(Click Appropriate Link for Calculation of Fixed Costs or Payments)") -> FIXED COST:(No Fixed Cost for Variable Cost Budget | H44: =IF($R$1<>3,ACRES,"") ->  | I44: =IF($R$1=1,TFC,IF($R$1=2,payment,"")) ->  | J44: =IF($R$1<>3,I44*H44,"") -> 
A45: Calculate Fixed Payment | B45: =IF($R$1=1,"OVERHEAD"," ") ->  | F45: =IF($R$1=1,"ACRE"," ") ->  | H45: =IF($R$1=1,ACRES,"") ->  | I45: =IF($R$1=1,3,"") ->  | J45: =IF($R$1=1,I45*H45,"") -> 
B46: =IF($R$1=1,"MANAGEMENT"," ") ->  | F46: =IF($R$1=1,"% EXPENSES"," ") ->  | H46: =IF($R$1=1,tVC,"") ->  | I46: =IF($R$1=1,0.05,"") ->  | J46: =IF($R$1=1,I46*H46,"") -> 
B47: =IF($R$1=1,"LAND"," ") ->  | F47: =IF($R$1=1,"ACRE"," ") ->  | H47: =IF($R$1=1,ACRES,"") ->  | I47: =IF($R$1=1,0," ") ->  | J47: =IF($R$1=1,I47*H47,"") -> 
B48: TOTAL FIXED COST | J48: =+SUM(J44:J47) -> 0
B50: TOTAL COST | J50: =+J48+tvc_grazing -> 121.820137
B59: SENSITIVITY ANALYSIS-VARIABLE COSTS
C61: Cost Per Grazing Day at Various Combinations of Grazing Days & Costs Per Acre
D62: -0.25 | E62: -0.1 | F62: Expected | G62: +10% | H62: +25%
C63: Grazing Days | D63: =+F63*0.75 -> 91.36510274 | E63: =+F63*0.9 -> 109.6381233 | F63: =+tvc_grazing -> 121.820137 | G63: =+F63*1.1 -> 134.0021507 | H63: =+F63*1.25 -> 152.2751712
C64: 30 | D64: =+D$63/$C64 -> 3.045503425 | E64: 3.65460411 | F64: 4.060671233 | G64: 4.466738356 | H64: 5.075839041
C65: 60 | D65: 1.522751712 | E65: 1.827302055 | F65: 2.030335616 | G65: 2.233369178 | H65: 2.537919521
C66: 90 | D66: 1.015167808 | E66: 1.21820137 | F66: 1.353557078 | G66: 1.488912785 | H66: 1.691946347
C67: 120 | D67: 0.7613758562 | E67: 0.9136510274 | F67: 1.015167808 | G67: 1.116684589 | H67: 1.26895976
C68: 150 | D68: 0.6091006849 | E68: 0.7309208219 | F68: 0.8121342466 | G68: 0.8933476712 | H68: 1.015167808
C69: 180 | D69: 0.5075839041 | E69: 0.6091006849 | F69: 0.6767785388 | G69: 0.7444563927 | H69: 0.8459731735
C72: Grazing Days Required to Breakeven at Various Dollars Per Day Drylot Cost & Per Acre Cost
D73: -0.25 | E73: -0.1 | F73: Expected | G73: +10% | H73: +25%
C74: $/Day Drylot Costs | D74: =+D63 -> 91.36510274 | E74: =+E63 -> 109.6381233 | F74: =+F63 -> 121.820137 | G74: =+G63 -> 134.0021507 | H74: =+H63 -> 152.2751712
C75: 0.25 | D75: =+D$74/$C75 -> 365.460411 | E75: 438.5524932 | F75: 487.2805479 | G75: 536.0086027 | H75: 609.1006849
C76: =+C75+0.25 -> 0.5 | D76: 182.7302055 | E76: 219.2762466 | F76: 243.640274 | G76: 268.0043014 | H76: 304.5503425
C77: =+C76+0.25 -> 0.75 | D77: 121.820137 | E77: 146.1841644 | F77: 162.4268493 | G77: 178.6695342 | H77: 203.0335616
C78: =+C77+0.25 -> 1 | D78: 91.36510274 | E78: 109.6381233 | F78: 121.820137 | G78: 134.0021507 | H78: 152.2751712
C79: =+C78+0.25 -> 1.25 | D79: 73.09208219 | E79: 87.71049863 | F79: 97.45610959 | G79: 107.2017205 | H79: 121.820137
O97: * | P97: Must match budget Entries | T97: *
O98: * | P98: - | T98: *
O101: * | P101: =+F16 -> 1 | Q101: ACRE | T101: *
O102: * | P102: =+#REF! ->  | Q102: Best Y | R102: =+#REF! ->  | S102: Best P | T102: *
O103: * | P103: =+#REF! ->  | Q103: Opt. Y | R103: =+#REF! ->  | S103: Opt. P | T103: *
O104: * | P104: =+#REF! ->  | Q104: Med. Y | R104: =#REF! ->  | S104: Med. P | T104: *
O105: * | P105: =+#REF! ->  | Q105: Pess. Y | R105: =#REF! ->  | S105: Pess. P | T105: *
O107: * | P107: =+#REF! ->  | Q107: Worst Y | R107: =J20 -> 0 | S107: Worst P | T107: *
O108: * | P108: 0 | Q108: H&MC | T108: *
O109: * | P109: =+G68 -> 0.8933476712 | Q109: T.C. | T109: *
O110: * | P110: * | T110: *
O111: : | P111: - | T111: :
O113: : | Q113: Calculations | T113: :
O115: : | P115: - | T115: :
O116: : | P116: =0.04*P102+0.25*P103+0.42*P104+0.25*P105+0.04*P107 ->  | Q116: Exp. Y | R116: =0.04*R102+0.25*R103+0.42*R104+0.25*R105+0.04*R107 ->  | S116: Exp. P | T116: :
O118: : | P118: =0.25*(P102-P116)+0.5*(P103-P116) ->  | Q118: SYO | R118: =0.25*(R102-R116)+0.5*(R103-R116) ->  | S118: SPO | T118: :
O119: : | P119: =0.25*(P116-P107)+0.5*(P116-P105) ->  | Q119: SYP | R119: =0.25*(R116-R107)+0.5*(R116-R105) ->  | S119: SPP | T119: :
O120: : | P120: =P118^2 ->  | Q120: VYO | R120: =R118^2 ->  | S120: VPO | T120: :
O121: : | P121: =P119^2 ->  | Q121: VYP | R121: =R119^2 ->  | S121: VPP | T121: :
O122: : | P122: - | T122: :
O123: : | P123: =(P116^2*R120)+(R116-P108)^2*P120 ->  | Q123: VTRHH | R123: =(P116^2*R121)+(R116-P108)^2*P121 ->  | S123: VTRLL | T123: :
O124: : | P124: =(P116^2*R120)+(R116-P108)^2*P121 ->  | Q124: VTRHL | R124: =P116^2*R121+(R116-P108)^2*P120 ->  | S124: VTRLH | T124: :
O125: : | P125: =SQRT(P123) ->  | Q125: STRHH | R125: =SQRT(R123) ->  | S125: STRLL | T125: :
O127: : | P127: =SQRT(P124) ->  | Q127: STRHL | R127: =SQRT(R124) ->  | S127: STRLH | T127: :
O128: : | P128: =0.66*P125+0.17*P127+0.17*R127 ->  | Q128: STRO | R128: =0.66*R125+0.17*P127+0.17*R127 ->  | S128: STRP | T128: :
O129: : | P129: - | T129: :
O130: : | P130: Calculation of NR and for Z values | T130: :
O140: : | P140: - | T140: :
O141: : | P141: =R104 ->  | Q141: MP | R141: =+P147-P145 ->  | S141: ENR_MNR | T141: :
O142: : | P142: =P104 ->  | Q142: MY | R142: =P101*P125 ->  | S142: STRHH | T142: :
O143: : | P143: =+P146+0.33*(R147-R146) ->  | Q143: MTR | R143: =P101*R125 ->  | S143: STRLL | T143: :
O144: : | P144: =+G68 -> 0.8933476712 | Q144: MTC | R144: =P101*P127 ->  | S144: STRHL | T144: :
O145: : | P145: =P143-P144 ->  | Q145: MNR | R145: =P101*R127 ->  | S145: STRLH | T145: :
O146: : | P146: =P101*P116*R116 ->  | Q146: ETR | R146: =P101*P128 ->  | S146: STRO | T146: :
O147: : | P147: =P146-P144 ->  | Q147: ENR | R147: =P101*R128 ->  | S147: STRP | T147: : | AV147: 1
O148: : | P148: - | T148: :
P150: =+D88>=P145 ->  | Q150: =ABS((D88-P147)/IF(P150,R146,R147)) ->  | R150: =MIN(2.5,ABS((D88-(P145+R141*ABS(D88-P145)/ABS(IF(P150,R146+R141,R147-R141))*MIN(1,Q150)))/(MIN(1.52,Q150)/1.52*IF(P150,R142,R143)+(1.52-MIN(1.52,Q150))/3.04*R144+(1.52-MIN(1.52,Q150))/3.04*R145))) ->  | S150: =1/(1+(0.2316419*R150)) ->  | T150: =0.398942281*((2.71828)^((-(R150^2)/2))) ->  | U150: =T150*(0.31938153*S150-0.356563782*S150^2+1.781477937*S150^3-1.821255978*S150^4+1.330274429*S150^5) ->  | V150: =+E88>=P145 ->  | W150: =ABS((E88-P147)/IF(V150,R146,R147)) ->  | X150: =MIN(2.5,ABS((E88-(P145+R141*ABS(E88-P145)/ABS(IF(V150,R146+R141,R147-R141))*MIN(1,W150)))/(MIN(1.52,W150)/1.52*IF(V150,R142,R143)+(1.52-MIN(1.52,W150))/3.04*R144+(1.52-MIN(1.52,W150))/3.04*R145))) ->  | Y150: =1/(1+(0.2316419*X150)) ->  | Z150: =0.398942281*((2.71828)^((-(X150^2)/2))) ->  | AA150: =Z150*(0.31938153*Y150-0.356563782*Y150^2+1.781477937*Y150^3-1.821255978*Y150^4+1.330274429*Y150^5) ->  | AB150: =+F88>=P145 ->  | AC150: =ABS((F88-P147)/IF(AB150,R146,R147)) ->  | AD150: =MIN(2.5,ABS((F88-(P145+R141*ABS(F88-P145)/ABS(IF(AB150,R146+R141,R147-R141))*MIN(1,AC150)))/(MIN(1.52,AC150)/1.52*IF(AB150,R142,R143)+(1.52-MIN(1.52,AC150))/3.04*R144+(1.52-MIN(1.52,AC150))/3.04*R145))) ->  | AE150: =1/(1+(0.2316419*AD150)) ->  | AF150: =0.398942281*((2.71828)^((-(AD150^2)/2))) ->  | AG150: =AF150*(0.31938153*AE150-0.356563782*AE150^2+1.781477937*AE150^3-1.821255978*AE150^4+1.330274429*AE150^5) -> 
R151: =MIN(2.5,ABS((D88-P147)/(MIN(1.52,Q150)/1.52*IF(P150,R142,R143)+(1.52-MIN(1.52,Q150))/3.04*R144+(1.52-MIN(1.52,Q150))/3.04*R145))) ->  | X151: =MIN(2.5,ABS((E88-P147)/(MIN(1.52,W150)/1.52*IF(V150,R142,R143)+(1.52-MIN(1.52,W150))/3.04*R144+(1.52-MIN(1.52,W150))/3.04*R145))) ->  | AD151: =MIN(2.5,ABS((F88-P147)/(MIN(1.52,AC150)/1.52*IF(AB150,R142,R143)+(1.52-MIN(1.52,AC150))/3.04*R144+(1.52-MIN(1.52,AC150))/3.04*R145))) ->  | AE151: =1/(1+(0.2316419*AD151)) ->  | AF151: =0.398942281*((2.71828)^((-(AD151^2)/2))) ->  | AG151: =AF151*(0.31938153*AE151-0.356563782*AE151^2+1.781477937*AE151^3-1.821255978*AE151^4+1.330274429*AE151^5) -> 
P152: =+G88>=P145 ->  | Q152: =ABS((G88-P147)/IF(P152,R146,R147)) ->  | R152: =MIN(2.5,ABS((G88-(P145+R141*ABS(G88-P145)/ABS(IF(P152,R146+R141,R147-R141))*MIN(1,Q152)))/(MIN(1.52,Q152)/1.52*IF(P152,R142,R143)+(1.52-MIN(1.52,Q152))/3.04*R144+(1.52-MIN(1.52,Q152))/3.04*R145))) ->  | V152: =+H88>=P145 ->  | W152: =ABS((H88-P147)/IF(V152,R146,R147)) ->  | X152: =MIN(2.5,ABS((H88-(P145+R141*ABS(H88-P145)/ABS(IF(V152,R146+R141,R147-R141))*MIN(1,W152)))/(MIN(1.52,W152)/1.52*IF(V152,R142,R143)+(1.52-MIN(1.52,W152))/3.04*R144+(1.52-MIN(1.52,W152))/3.04*R145))) ->  | AB152: =+I88>=P145 ->  | AC152: =ABS((I88-P147)/IF(AB152,R146,R147)) ->  | AD152: =MIN(2.5,ABS((I88-(P145+R141*ABS(I88-P145)/ABS(IF(AB152,R146+R141,R147-R141))*MIN(1,AC152)))/(MIN(1.52,AC152)/1.52*IF(AB152,R142,R143)+(1.52-MIN(1.52,AC152))/3.04*R144+(1.52-MIN(1.52,AC152))/3.04*R145))) ->  | AE152: =1/(1+(0.2316419*AD152)) ->  | AF152: =0.398942281*((2.71828)^((-(AD152^2)/2))) ->  | AG152: =AF152*(0.31938153*AE152-0.356563782*AE152^2+1.781477937*AE152^3-1.821255978*AE152^4+1.330274429*AE152^5) -> 
R153: =MIN(2.5,ABS((G88-P147)/(MIN(1.52,Q152)/1.52*IF(P152,R142,R143)+(1.52-MIN(1.52,Q152))/3.04*R144+(1.52-MIN(1.52,Q152))/3.04*R145))) ->  | X153: =MIN(2.5,ABS((H88-P147)/(MIN(1.52,W152)/1.52*IF(V152,R142,R143)+(1.52-MIN(1.52,W152))/3.04*R144+(1.52-MIN(1.52,W152))/3.04*R145))) ->  | AD153: =MIN(2.5,ABS((I88-P147)/(MIN(1.52,AC152)/1.52*IF(AB152,R142,R143)+(1.52-MIN(1.52,AC152))/3.04*R144+(1.52-MIN(1.52,AC152))/3.04*R145))) ->  | AE153: =1/(1+(0.2316419*AD153)) ->  | AF153: =0.398942281*((2.71828)^((-(AD153^2)/2))) ->  | AG153: =AF153*(0.31938153*AE153-0.356563782*AE153^2+1.781477937*AE153^3-1.821255978*AE153^4+1.330274429*AE153^5) -> 
P154: =+J88>=P145 ->  | Q154: =ABS((J88-P147)/IF(P154,R146,R147)) ->  | R154: =MIN(2.5,ABS((J88-(P145+R141*ABS(J88-P145)/ABS(IF(P154,R146+R141,R147-R141))*MIN(1,Q154)))/(MIN(1.52,Q154)/1.52*IF(P154,R142,R143)+(1.52-MIN(1.52,Q154))/3.04*R144+(1.52-MIN(1.52,Q154))/3.04*R145))) ->  | V154: =0>=P145 ->  | W154: =ABS((0-P147)/IF(V154,R146,R147)) ->  | X154: =MIN(2.5,ABS((0-(P145+R141*ABS(0-P145)/ABS(IF(V154,R146+R141,R147-R141))*MIN(1,W154)))/(MIN(1.52,W154)/1.52*IF(V154,R142,R143)+(1.52-MIN(1.52,W154))/3.04*R144+(1.52-MIN(1.52,W154))/3.04*R145))) -> 
R155: =MIN(2.5,ABS((J88-P147)/(MIN(1.52,Q154)/1.52*IF(P154,R142,R143)+(1.52-MIN(1.52,Q154))/3.04*R144+(1.52-MIN(1.52,Q154))/3.04*R145))) ->  | X155: =MIN(2.5,ABS((0-P147)/(MIN(1.52,W154)/1.52*IF(V154,R142,R143)+(1.52-MIN(1.52,W154))/3.04*R144+(1.52-MIN(1.52,W154))/3.04*R145))) -> 
P160: EXPDATA
P161: =P101 -> 1 | Q161: =P116 ->  | R161: =R116 ->  | S161: =I68 -> 0 | T161: =R146 ->  | U161: =R147 ->  | V161: =R142 ->  | W161: =R144 ->  | X161: =R143 ->  | Y161: =R145 -> 
B192: ALTB for calculation and return to breakeven table;
B193: ALTR for calculation and return to risk rated return table;
B194: ALTI for return to Instructions;
B195: HOME for return to beginning of budget.
B245: ALTB for calculation and return to breakeven table;
B246: ALTR for calculation and return to risk rated return table;
B248: HOME for return to beginning of budget.

Sheet Feed Cost
A1: Animal Type | B1: Steer
A2: Gain Target | B2: 2
A3: Calf weight | B3: 600
A4: Days fed | B4: 30
B5: $/ton | C5: $/# | D5: % of Ration | E5: #/ton | F5: Cost/ton
A6: corn | B6: 100 | C6: =+B6/2000 -> 0.05 | D6: 0.6 | E6: =+D6*2000 -> 1200 | F6: =+E6*C6 -> 60
A7: corn gluten | B7: 100 | C7: =+B7/2000 -> 0.05 | D7: 0.3 | E7: =+D7*2000 -> 600 | F7: =+E7*C7 -> 30
A8: gin trash | B8: 0 | C8: =+B8/2000 -> 0 | D8: 0 | E8: =+D8*2000 -> 0 | F8: =+E8*C8 -> 0
A9: Soybean Meal | B9: 250 | C9: =+B9/2000 -> 0.125 | D9: 0.1 | E9: =+D9*2000 -> 200 | F9: =+E9*C9 -> 25
D10: =+SUM(D6:D9) -> 1 | E10: Total | F10: =SUM(F6:F9) -> 115
E11: Total $/# | F11: =+F10/2000 -> 0.0575
A13: Consumption | B13: # fed/day | C13: Cost/day | D13: Total cost | E13: total # fed | F13: $/Cwt
A14: 0.005 | B14: =+A14*$B$3 -> 3 | C14: =+B14*$F$11 -> 0.1725 | D14: =+C14*$B$4 -> 5.175 | E14: =+B14*$B$4 -> 90
A15: 0.01 | B15: 6 | C15: 0.345 | D15: 10.35 | E15: =+B15*$B$4 -> 180
A16: 0.015 | B16: 9 | C16: 0.5175 | D16: 15.525 | E16: 270
A17: 0.0175 | B17: 10.5 | C17: 0.60375 | D17: 18.1125 | E17: 315
A18: 0.02 | B18: 12 | C18: 0.69 | D18: 20.7 | E18: 360
A19: 0.022 | B19: 13.2 | C19: 0.759 | D19: 22.77 | E19: 396
A20: 0.025 | B20: 15 | C20: 0.8625 | D20: 25.875 | E20: 450

Sheet Procurement
I2: Return to Main Budget
B3: Procurement Cost Detail
B5: ITEM | E5: UNIT | F5: QUANTITY | G5: PRICE | H5: AMOUNT
H6: ($/hd.)
B7: ORDER BUYING | E7: CWT. | F7: =+Main!F36 -> 5 | G7: 0.5 | H7: =F7*G7 -> 2.5
B8: HAULING | E8: MILES | F8: 100 | G8: 1.85 | H8: =+G8*F8/30 -> 6.166666667
B10: TOTAL PROCUREMENT COST | H10: =SUM(H7:H8) -> 8.666666667
B13: Auction & Hauling Cost Detail | I13: Return to Main Budget
B15: ITEM | E15: UNIT | F15: QUANTITY | G15: PRICE | H15: AMOUNT
B16: COMMISSION | E16: % | F16: =+[3]Main!H29*[3]Main!H30 -> 796.1625 | G16: 0.02 | H16: =+G16*F16 -> 15.92325
B17: YARDAGE | E17: Day | F17: 1 | G17: 1 | H17: =+G17*F17 -> 1
B18: HAULING | E18: MILES | F18: 100 | G18: 1.85 | H18: =+G18*F18/24 -> 7.708333333
B20: Total Auction & Hauling Cost | H20: =+SUM(H16:H18) -> 24.63158333

Sheet Fixed_Cost
B3: INVESTMENT AND ANNUAL FIXED COST
B4: (Check All Higlighted Entries this Page)
D6: NO. OF CALVES STOCKERED: | G6: =+placed -> 100
D7: NO. OF ACRES: | G7: 100 | J7: Return to Budget
D8: INTEREST RATE: | G8: 0.08
D10: % OF TIME FOR | G10: SALVAGE | H10: YRS. OF | I10: CALC.
B11: ITEM | D11: THIS ENTERPRISE | F11: COST | G11: VALUE | H11: LIFE | I11: DEPR. | J11: TOTAL
B12: CATTLE EQUIP: | E12: (%) | H12: (Yr.) | I12: ($/yr.)
B13: FENCING | E13: 1 | F13: =1.8*1800 -> 3240 | G13: 0 | H13: 15 | I13: =IF(F13>0,E13*(F13-G13)/H13,0) -> 216
B14: CORRAL & LOADING CHUTE | E14: 1 | F14: 2200 | G14: 0 | H14: 10 | I14: 220
B15: FEED BUNKS | E15: 1 | F15: 2070 | G15: 0 | H15: 10 | I15: 207
B16: MISC. EQUIPMENT | E16: 1 | F16: 500 | G16: 0 | H16: 10 | I16: 50
B17: OTHER | E17: 0 | F17: 0 | G17: 0 | H17: 0 | I17: 0
B18: OTHER | E18: 0 | F18: 0 | G18: 0 | H18: 0 | I18: 0
B19: OTHER | E19: 0 | F19: 0 | G19: 0 | H19: 0 | I19: 0
B20: MACHINERY & EQUIPMENT:
B21: TRACTOR | E21: 0.08 | F21: 25000 | G21: 10000 | H21: 10 | I21: =IF(F21>0,E21*(F21-G21)/H21,0) -> 120
B22: GRAIN DRILL | E22: 1 | F22: 5000 | G22: 1000 | H22: 10 | I22: 400
B23: DISK | E23: 0.25 | F23: 6500 | G23: =0.2*F23 -> 1300 | H23: 10 | I23: 130
B24: PLOW | E24: 0.25 | F24: 7000 | G24: =0.2*F24 -> 1400 | H24: 10 | I24: 140
B25: OTHER SEEDING EQUIP. | E25: 0 | F25: 0 | G25: 0 | H25: 0 | I25: 0
B26: OTHER | E26: 0 | F26: 0 | G26: 0 | H26: 0 | I26: 0
B27: LAND | E27: 0 | F27: 50000 | G27: 50000 | H27: 30 | I27: 0
B30: TOTAL CATTLE INVESTMENT | F30: =+F13*E13+F14*E14+F15*E15+F16*E16+F17*E17+F18*E18+F19*E19 -> 8010 | G30: =+G13*E13+G14*E14+G15*E15+G16*E16+E17*G17+E18*G18+E19*G19 -> 0
B31: TOTAL MACH. & EQUIP. INVEST. | F31: =+F21*E21+F22*E22+F23*E23+F24*E24+F25*E25+F26*E26+F27*E27 -> 10375 | G31: =+G21*E21+G22*E22+G23*E23+G24*E24+G25*E25+G26*E26+G27*E27 -> 2475
B33: TOTAL CATTLE EQUIP. DEPRECIATION | J33: =SUM(I13:I19) -> 693
B34: TOTAL MACH. & EQUIP. DEPRECIATION | J34: =SUM(I21:I27) -> 790
B36: INTEREST ON CATTLE INVEST. (AVE. INV. TIMES INT. RATE) | J36: =AVERAGE(F30:G30)*G8 -> 320.4
B37: INTEREST ON MACH. & EQUIP. INVEST. (AVE. INV. TIMES INT. RATE) | J37: =AVERAGE(F31:G31)*G8 -> 514
B39: CATTLE EQUIP. TAX & INS., | F39: AVE. INV. TIMES | H39: 0.014 | J39: =AVERAGE(F30:G30)*H39 -> 56.07
B40: MACH & EQUIP. TAX & INS., | F40: AVE. INV. TIMES | H40: 0.014 | J40: =AVERAGE(F31:G31)*H40 -> 89.95
B42: TOTAL ANNUAL FIXED COST | J42: =SUM(J33:J40) -> 2463.42
I44: Per Head Marketed | J44: Total
B45: ANNUAL CATTLE EQUIP. FIXED COST | I45: =+cattle_fixed/sold -> 10.80272727 | J45: =SUM(J33,J36,J39) -> 1069.47
B46: TOTAL ANNUAL MACHINERY & EQUIPMENT FIXED COST PER ACRE | I46: =+mach_fixed/ACRES -> 27.879 | J46: =SUM(J34,J37,J40) -> 1393.95

Sheet Fixed_Payment
B2: Return to Budget
B3: ANNUAL ENTERPRISE FIXED OUTLAYS
B4: Check All Highlighted Entries this Page)
E6: NO. OF ACRES: | G6: 100
E7: NO. OF HEAD: | G7: =+sold -> 99
B10: DEBT PAYMENT CALCULATION ON NEW INVESTMENT:
B11: (For Use In Calculating Debt Payments on New Investment)
E12: UNIT | F12: TOTAL | G12: -------FINANCING-------
B13: ITEM | D13: NUMBER | E13: COST | F13: COST | G13: AMOUNT | H13: YEARS | I13: INT.RATE | J13: PAYMENT
B14: FACILITIES:
B15: FENCE (MILES) | D15: 1.8 | E15: 1800 | F15: =D15*E15 -> 3240 | G15: 0.5 | H15: 7 | I15: 0.11 | J15: =PMT(I15,H15,-F15*G15) -> 343.7887365
B16: CORRAL &
B17: LOADING CHUTE | F17: 2200 | G17: 0.5 | H17: 7 | I17: 0.11 | J17: =PMT(I17,H17,-F17*G17) -> 233.4367964
B18: FEED BUNK | F18: =9*G7 -> 891 | G18: 0.5 | H18: 7 | I18: 0.11 | J18: =PMT(I18,H18,-F18*G18) -> 94.54190254
B19: GRINDERMIXER | F19: 7000 | G19: 0.5 | H19: 7 | I19: 0.11 | J19: =PMT(I19,H19,-F19*G19) -> 742.7534431
B20: GRAIN BIN (2000 BU.) | F20: 2300 | G20: 0.5 | H20: 7 | I20: 0.11 | J20: =PMT(I20,H20,-F20*G20) -> 244.0475599
B21: MISC. EQUIP. | F21: 400 | G21: 0.5 | H21: 7 | I21: 0.11 | J21: =PMT(I21,H21,-F21*G21) -> 42.44305389
B23: LAND | D23: =Main!F18 -> 50 | E23: 500 | F23: =D23*E23 -> 25000 | G23: 0 | H23: 30 | I23: 0.1 | J23: =PMT(I23,H23,-F23*G23) -> 0
B25: CALCULATED TOTAL ANNUAL DEBT PAYMENT | J25: =SUM(J15:J23) -> 1701.011492
B28: CURRENT ANNUAL DEBT PAYMENTS:
B29: (For Use In Totaling Debt Payments on Existing Investment)
B31: LOAN # 1 | J31: 0
B32: LOAN # 2 | J32: 0
B33: LOAN # 3 | J33: 0
B34: LOAN # 4 | J34: 0
B35: LOAN # 5 | J35: 0
E37: TOTAL ANNUAL DEBT PAYMENT | J37: =SUM(J25:J36) -> 1701.011492
E39: TAXES AND INSURANCE | J39: =+Fixed_Cost!J29 -> 0
E41: TOTAL ANNUAL FIXED OUTLAY | J41: =SUM(J37:J39) -> 1701.011492
E42: TOTAL ANNUAL FIXED OUTLAY PER HEAD | J42: =+J41/G7 -> 17.18193427

Sheet G

Sheet H

Sheet I

Sheet J

Sheet K

Sheet L
N1: -23595.59459 | O1: 0.02275009265
N2: -18314.6126 | O2: 0.06680727938
A3: 1 | N3: -13033.63061 | O3: 0.1586553132
N4: -10393.13961 | O4: 0.2266273226
N5: -7752.648615 | O5: 0.3085375586
N6: -5112.157619 | O6: 0.4012937347
N7: -2471.666622 | O7: 0.4999999998
N8: -2471.666622 | O8: 0.4999999998
N9: 168.8243744 | O9: 0.5987062653
N10: 2809.315371 | O10: 0.6914624414
N11: 5449.806368 | O11: 0.7733726774
N12: 8090.297364 | O12: 0.8413446868
N13: 13371.27936 | O13: 0.9331927206
N14: 18652.26135 | O14: 0.9772499073
